Cogmind - Beta 11 @@@ ROGUE MODE // 2022.03.30 @ 06:39:00 Player: maxwell Result: Destroyed by H-88 Terminator with Heavy Machine Gun Performance ------------- Evolutions (8) 4000 Regions Visited (20) 4000 Robots Destroyed (423) 2115 Value Destroyed (20320) 20320 Prototype IDs (42) 840 Alien Tech Used (0) 0 Bonus (4027) 4027 TOTAL SCORE: 35302 Bonus ------- High Alert Combat Kills 2551 Follower Combat Kills 2189 Network Hubs Disabled 400 Built Enhanced Grunts 300 Friendly Fire -1413 Cogmind --------- Core Integrity 0/1450 Matter 120/300 Energy 100/100 System Corruption 61% Temperature Cool (0) Movement Core (50) Location -2/Research Parts ------- > --- POWER (2) -------- (None) > --- PROPULSION (8) --- (None) > --- UTILITY (9) ------ (None) > --- WEAPON (4) ------- (None) > --- INVENTORY (5) ---- Huge Storage Unit Improved Matter Compressor (0) Hacking Drone Bay (1/1) Compact HERF Cannon Z-bomb Delivery System Peak State ------------ > --- POWER ------------ Particle Reactor Micro Antimatter Reactor > --- PROPULSION ------- Biometal Medium Treads Armored Heavy Treads Advanced Heavy Treads Centrium Heavy Treads Myomer Leg > --- UTILITY ---------- Advanced Coolant Injector Huge Storage Unit Spectral Analyzer Advanced Signal Interpreter Experimental Terrain Scan Processor Improved Targeting Computer Advanced Target Analyzer > --- WEAPON ----------- Quantum Rifle Heavy Quantum Rifle Helical Railgun Z-bomb Delivery System > --- INVENTORY -------- Micro Antimatter Reactor Myomer Leg Myomer Leg Advanced Power Amplifier Advanced Heat Sink Huge Storage Unit Improved Matter Compressor Experimental Matter Compressor Advanced Terrain Scan Processor Layered Medium Armor Plating Layered Medium Armor Plating Layered Medium Armor Plating Hacking Drone Bay Gamma Rifle Gamma Rifle Gamma Rifle Gamma Rifle Compact HERF Cannon Compact HERF Cannon Heavy Neutron Cannon Improved Matter Neutralizer Hardcell Cannon Linear Accelerator Heavy Shock Bomb Launcher Fusion Bomb Launcher [Rating: 180] Favorites ----------- Power Hybrid Deuterium Engine Engine Hybrid Deuterium Engine Power Core Neutrino Core Reactor Micro Antimatter Reactor Propulsion Light Treads Treads Light Treads Leg Flexi-carbon Leg Wheel Wheel Hover Unit Improved Antigrav System Flight Unit Nuclear Pulse Array Utility Huge Storage Unit Device Active Sensor Suite Storage Huge Storage Unit Processor Advanced Targeting Computer Hackware Advanced Hacking Suite Protection Centrium Medium Armor Plating Weapon Enhanced Autogun Energy Gun Plasma Rifle Energy Cannon Neutron Cannon Ballistic Gun Enhanced Autogun Ballistic Cannon Linear Accelerator Launcher Heavy Shock Bomb Launcher Impact Weapon Power Maul Slashing Weapon Greatsword Piercing Weapon Spear Build | -11 -10 -10 -9 -8 -8 -7 -6 -6 -6 -6 -5 -5 -4 -4 -4 -4 -4 -3 -3 -2 ------- Run | Scr Mat Min Mat Mat Sto Fac Fac Low Low Zio Pro Fac Fac Ext Cet Arc Hub Res Tes Res Slots Evolved 16 | . . . 2 2 . 2 2 . . . . 2 2 . . . . 2 . 2 Power 1 | . . . . . . . . . . . . . 1 . . . . . . . Propulsion 6 | . . . 1 1 . 1 . . . . . 1 . . . . . 2 . . Utility 7 | . . . . . . 1 2 . . . . 1 1 . . . . . . 2 Weapon 2 | . . . 1 1 . . . . . . . . . . . . . . . . Parts Attached 489 | 6 3 . 8 12 40 30 1 2 5 3 1 31 50 41 16 13 33 62 72 60 Power 42 | 1 . . 1 1 1 1 . . . . 1 2 6 3 2 1 . 9 7 6 Engine 7 | 1 . . . . . 1 . . . . . . . . . . . 2 . 3 Core 13 | . . . 1 1 1 . . . . . 1 2 4 2 . 1 . . . . Reactor 22 | . . . . . . . . . . . . . 2 1 2 . . 7 7 3 Propulsion 125 | 2 . . 2 3 13 10 . . 1 1 . 11 12 11 3 1 7 17 16 15 Treads 80 | 2 . . 2 3 13 10 . . 1 1 . 8 . 11 3 1 7 7 10 1 Leg 34 | . . . . . . . . . . . . 1 11 . . . . 10 5 7 Wheel 6 | . . . . . . . . . . . . . . . . . . . . 6 Hover 3 | . . . . . . . . . . . . . 1 . . . . . 1 1 Flight 2 | . . . . . . . . . . . . 2 . . . . . . . . Utility 152 | 1 3 . 3 1 3 9 1 . . . . 8 22 7 3 8 18 19 31 15 Device 98 | . 1 . . 1 1 7 1 . . . . 6 11 4 2 7 16 13 19 9 Storage 15 | 1 1 . 1 . 1 . . . . . . 1 5 3 . . . 1 1 . Processor 14 | . . . . . . 2 . . . . . 1 2 . . . 1 2 6 . Hackware 6 | . . . . . 1 . . . . . . . 3 . . . . . 2 . Protection 19 | . 1 . 2 . . . . . . . . . 1 . 1 1 1 3 3 6 Artifact . | . . . . . . . . . . . . . . . . . . . . . Weapon 170 | 2 . . 2 7 23 10 . 2 4 2 . 10 10 20 8 3 8 17 18 24 Energy Gun 40 | . . . 1 3 7 . . . . . . 1 . . . . . 10 9 9 Energy Cannon 32 | . . . . . 3 . . . . . . 3 2 7 2 1 2 1 4 7 Ballistic Gun 60 | 2 . . 1 4 11 6 . 1 2 1 . 3 6 9 4 2 4 2 2 . Ballistic Cannon 6 | . . . . . . . . . . . . . . . . . 1 1 1 3 Launcher 25 | . . . . . 2 3 . . . . . 3 . 4 2 . 1 3 2 5 Special Weapon . | . . . . . . . . . . . . . . . . . . . . . Impact Weapon 5 | . . . . . . 1 . 1 2 1 . . . . . . . . . . Slashing Weapon 1 | . . . . . . . . . . . . . 1 . . . . . . . Piercing Weapon 1 | . . . . . . . . . . . . . 1 . . . . . . . Special Melee Weapon . | . . . . . . . . . . . . . . . . . . . . . Unidentified Prototypes 41 | . . . . 1 10 . 1 . . . . . 1 2 4 . 2 3 15 2 Corrupted Parts 26 | . . . . 1 . . . . . . . . . 2 4 1 1 4 3 10 System Corruption 112 | . . . . 2 . . . . . . . . . 5 18 12 1 7 23 44 Parts Lost 170 | . . . . 1 7 1 . . . . 1 25 4 10 5 . 21 30 16 49 Power 26 | . . . . . . . . . . . 1 2 2 1 1 . 2 6 3 8 Propulsion 60 | . . . . 1 4 . . . . . . 13 . 3 1 . 6 7 7 18 Utility 30 | . . . . . 1 . . . . . . 2 1 1 . . 5 9 3 8 Weapon 54 | . . . . . 2 1 . . . . . 8 1 5 3 . 8 8 3 15 Highest Loss Streak 31 | . . . . 1 4 1 . . . . 1 24 1 5 2 . 20 11 7 31 To Critical Strikes 3 | . . . . . . . . . . . . . . . . . . . 1 2 Average Slot Usage (%) 86 | . 98 100 99 99 99 99 86 86 86 86 85 75 80 91 82 81 80 74 79 64 Engine 2 | . 14 14 8 . . 4 6 6 6 6 . . . . . . . 1 . . Core 2 | . . . 2 9 8 2 . . . . 5 4 4 8 . . 4 . . . Reactor 2 | . . . . . . . . . . . . . 2 1 8 9 4 5 8 7 Treads 24 | . 28 28 32 36 35 37 33 33 33 33 33 28 . 25 16 15 14 8 14 . Leg 3 | . . . . . . . . . . . . . 28 . . . . 16 5 11 Device 7 | . 1 . . 8 5 4 6 6 6 6 6 9 10 12 10 9 16 10 5 12 Storage 6 | . 14 14 11 9 9 7 6 6 6 6 6 4 4 5 5 5 5 4 4 3 Processor 7 | . . . . . . 9 6 6 6 6 6 4 7 10 10 10 7 9 19 8 Hackware 1 | . . . . . 3 . . . . . . . 4 5 5 5 . . . 1 Protection 1 | . 11 14 10 . . . . . . . . . 1 . 3 3 4 1 1 2 Energy Gun 2 | . . . 5 1 6 . . . . . . . . . . . . 8 9 3 Energy Cannon 2 | . . . . . . . . . . . . 1 3 8 2 10 9 2 2 4 Ballistic Gun 18 | . 28 28 27 34 29 29 26 26 25 25 26 16 10 10 16 9 9 . 2 . Naked Turns 57 | . . . . . . . . . . . . 39 . . . . . . . 18 Heaviest Build 164 | 12 32 28 93 98 98 104 103 103 103 103 110 122 78 144 158 160 156 138 143 164 Greatest Support 295 | 40 40 40 60 80 80 100 100 100 108 108 100 130 127 215 230 230 230 250 295 180 Greatest Overweight (x) 30 | 3 . . 1 1 1 1 1 1 1 1 1 30 1 1 . . 1 1 1 16 Average Overweight (x) . | . . . . 1 1 . 1 1 . . . . . . . . . . . 2 Largest Inventory Capacity 25 | 8 15 15 25 25 25 25 25 25 25 25 25 25 25 25 25 25 25 25 25 25 Average Capacity 23 | 7 14 15 24 25 25 25 25 25 25 25 25 22 13 24 25 25 25 25 25 24 Most Carried 25 | 3 14 15 25 25 25 25 25 23 25 25 25 25 15 25 25 25 25 25 25 25 Average Carried 21 | 1 10 14 16 22 24 24 23 21 23 24 25 21 10 20 22 24 23 13 23 20 Final Capacity 25 | 8 15 15 25 25 25 25 25 25 25 25 25 5 15 25 25 25 25 25 25 5 Final Carried 25 | 3 14 15 21 25 25 25 23 22 25 25 25 5 15 19 25 25 10 25 22 5 Class Distribution -------------------- 31% | Scavenger-Skirmisher 26% | Scavenger-Gunner 14% | Scavenger-Tank 12% | Scavenger-Mutant 9% | Mutant Dominant Class ---------------- Mutant | -10/Materials Mutant | -10/Mines Tank | -9/Materials Scavenger-Tank | -8/Materials Scavenger-Tank | -8/Storage Scavenger-Gunner | -7/Factory Scavenger-Skirmisher | -6/Factory Scavenger-Skirmisher | -6/Lower Caves Scavenger-Skirmisher | -6/Lower Caves Scavenger-Skirmisher | -6/Zion Scavenger-Skirmisher | -5/Proximity Caves Scavenger-Skirmisher | -5/Factory Scavenger-Tank | -4/Factory Scavenger-Gunner | -4/Extension Scavenger-Tank | -4/Cetus Scavenger-Mutant | -4/Archives Scavenger-Tank | -4/Hub_04(d) Scavenger-Mutant | -3/Research Scavenger-Gunner | -3/Testing Scavenger-Mutant | -2/Research Resources | -11 -10 -10 -9 -8 -8 -7 -6 -6 -6 -6 -5 -5 -4 -4 -4 -4 -4 -3 -3 -2 ----------- Run | Scr Mat Min Mat Mat Sto Fac Fac Low Low Zio Pro Fac Fac Ext Cet Arc Hub Res Tes Res Matter Collected 14112 | 260 135 143 145 343 1196 1682 . 739 386 30 117 650 952 1383 583 411 818 1354 1259 1526 Remotely 367 | . . . . . . 115 . . . . . 252 . . . . . . . . Salvage Created 21691 | . 151 91 258 876 1332 2626 35 510 499 . 241 1071 1154 3095 711 625 1911 2559 1796 2150 Parts 984 | . 15 1 24 38 65 134 3 20 28 . 10 43 48 99 25 40 85 97 97 112 Haulers Intercepted 19 | . 1 . 2 1 3 3 . . . . . 1 2 2 . . 1 2 1 . Recyclers Shooed 14 | . 2 . 2 1 1 . . . . . . . . 4 . . 1 2 . 1 Parts Field Recycled . | . . . . . . . . . . . . . . . . . . . . . Retrieved Matter . | . . . . . . . . . . . . . . . . . . . . . Parts Self-Destructed 56 | . . . . . . . . 19 30 . 7 . . . . . . . . . Prevented 3 | . . . . . . . . 2 . . 1 . . . . . . . . . Kills | -11 -10 -10 -9 -8 -8 -7 -6 -6 -6 -6 -5 -5 -4 -4 -4 -4 -4 -3 -3 -2 ------- Run | Scr Mat Min Mat Mat Sto Fac Fac Low Low Zio Pro Fac Fac Ext Cet Arc Hub Res Tes Res Combat Hostiles Destroyed 301 | . 4 2 5 16 21 38 . 8 8 . 3 22 16 30 9 4 23 34 25 33 Melee 3 | . . . . . . . . . . . . . 2 1 . . . . . . Guns 177 | . 4 2 5 16 21 34 . 8 8 . 3 11 11 14 7 2 6 8 13 4 Cannons 56 | . . . . . . . . . . . . 2 3 11 . 1 11 9 9 10 AOE 47 | . . . . . . 2 . . . . . 8 . 3 . 1 4 15 . 14 Classes Destroyed 22 | . 4 . 2 1 2 4 . 3 1 . . 1 1 2 . . . . 1 . Worker 29 | . . . 1 . . 3 . . . . . 2 1 1 . . 6 5 2 8 Builder 18 | . . . . . . 5 . . . . . . . 3 . . 1 1 . 8 Tunneler 3 | . . . . . . . . . . . . . 1 . . . 1 1 . . Hauler 19 | . 1 . 2 1 3 3 . . . . . 1 2 2 . . 1 2 1 . Recycler 14 | . . . . 1 1 2 . . . . . . 1 1 . . 2 3 . 3 Minesweeper 1 | . . . . . . . . 1 . . . . . . . . . . . . Operator 16 | . . . . . 1 2 . . . . . . 2 . . 9 . 2 . . Watcher 18 | . 1 . . . 1 3 1 . . . . . 1 2 . . 1 3 3 2 Swarmer 35 | . 3 . 3 3 . . . . 3 . . 1 5 1 . . . 7 . 9 Grunt 118 | . 1 2 1 11 12 22 . 3 1 . 3 11 2 12 2 . 9 18 . 8 Brawler 5 | . . . . . . . . 1 . . . . . 3 . . 1 . . . Duelist 2 | . . . . . . . . . . . . . . 1 . . 1 . . . Protector 4 | . . . . . . 1 . . . . . . . . . . 2 1 . . Sentry 40 | . . . 1 2 8 6 . 1 1 . . 2 2 8 . 4 1 1 . 3 Specialist 2 | . . . . . . . . . . . . 1 . 1 . . . . . . Hunter 24 | . . . . . 1 2 . 2 3 . . . 4 . 4 . 2 . 6 . Programmer 58 | . . . . . . 6 . . . . . 6 3 . . . 5 7 18 13 Heavy 3 | . . . . . . 1 . . . . . 1 . . . . 1 . . . Behemoth 2 | . . . . . . . . . . . . . . 1 . . 1 . . . Cetus Guard 3 | . . . . . . . . . . . . . . . 3 . . . . . Protovariant D 1 | . . . . . . . . . . . . . . . . . . . 1 . Samaritan 3 | . . . . . . . . . 2 . 1 . . . . . . . . . Thug 2 | . . . . . . . . . . . . . . 2 . . . . . . Savage 2 | . . . . . . . . . . . . . . 1 1 . . . . . Butcher 1 | . . . . . . . . . . . . . . 1 . . . . . . Guerrilla 2 | . . . . . . . . . . . . . . 2 . . . . . . Mutant 1 | . . . . . . . . 1 . . . . . . . . . . . . Best Kill Streak 24 | . 2 2 3 3 3 7 1 3 3 . 3 11 5 5 3 4 10 17 3 24 Combat Bots Only 12 | . 2 2 3 3 3 4 . 3 3 . 3 11 5 4 3 1 8 12 3 9 Max Kills in Single Turn 5 | . 1 1 1 1 2 2 1 1 2 . 1 5 2 2 2 1 3 4 1 5 Gunslinging 1 | . . . . . 1 1 . . 1 . . . 1 . . . . . . . Exploded 5 | . . . . . . 2 . . . . . 5 . 1 . 1 1 3 . 3 Melee 1 | . . . . . . . . . . . . . 1 1 . . . . . . Uniques/NPCs Destroyed . | . . . . . . . . . . . . . . . . . . . . . Combat | -11 -10 -10 -9 -8 -8 -7 -6 -6 -6 -6 -5 -5 -4 -4 -4 -4 -4 -3 -3 -2 -------- Run | Scr Mat Min Mat Mat Sto Fac Fac Low Low Zio Pro Fac Fac Ext Cet Arc Hub Res Tes Res Damage Taken 42280 | . 122 79 319 787 1070 1201 . 513 422 . 171 3951 2477 3380 1469 215 7603 5180 5874 7447 Core 4559 | . 24 . 58 56 83 182 . 11 . . . 705 318 95 147 . 475 454 486 1465 Absorbed by Shields 1482 | . . . . 250 263 166 . . . . . 196 . 275 112 . . . . 220 Reduced by Siege Mode 1399 | . . . . . . . . . . . . . . 75 5 . 983 96 240 . Redirected to Shielding 123 | . 4 . 7 . . . . . . . . . . . . . . . . 112 Regen/Repaired (Parts) 1416 | . . . 150 . . 222 . 409 398 . . . 237 . . . . . . . Core Remaining (%) 65 | 100 . 90 85 . 74 74 . . . . 98 29 . . . . 10 . 27 . Volleys Fired 948 | . 29 4 21 48 67 101 3 29 21 . 7 61 51 100 36 43 60 104 78 85 Largest 4 | . 2 2 3 4 4 4 4 4 4 . 4 4 4 4 4 4 4 4 4 4 Hottest 335 | . 40 40 90 118 136 136 100 100 100 . 100 165 240 248 180 245 250 326 335 279 Shots Fired 2863 | . 58 8 63 192 256 388 12 113 84 . 28 171 171 301 103 91 220 196 237 171 Gun 2267 | . 58 8 63 192 255 383 12 113 84 . 28 142 134 166 90 78 106 112 169 74 Cannon 534 | . . . . . . . . . . . . 23 37 129 4 13 110 70 68 80 Launcher 62 | . . . . . 1 5 . . . . . 6 . 6 9 . 4 14 . 17 Special . | . . . . . . . . . . . . . . . . . . . . . Kinetic 1977 | . 58 8 54 185 220 382 12 113 84 . 28 134 134 166 90 78 106 27 54 44 Thermal 713 | . . . 9 . 35 1 . . . . . 23 37 117 4 13 110 138 149 77 Explosive 29 | . . . . . 1 . . . . . . 6 . . . . . 12 . 10 Electromagnetic 144 | . . . . 7 . 5 . . . . . 8 . 18 9 . 4 19 34 40 Robot Hit Streak 22 | . 5 3 12 11 15 22 3 15 17 . 6 16 7 13 16 13 19 16 18 15 Robot Miss Streak 6 | . 4 3 2 6 5 4 2 5 4 . 2 3 6 4 5 4 3 3 6 5 Penetration Max 2 | . . . . . . . . . . . . . 1 1 1 1 2 1 1 . Secondary Targets 36 | . 1 . 2 3 4 7 . 1 2 . 2 4 3 . 3 . . 1 2 1 Max Gunslinging Chain 1 | . 1 . 1 1 1 1 . 1 1 . 1 1 1 . 1 . . 1 1 1 Shots Hit Robots 1791 | . 32 5 45 109 153 266 5 74 53 . 19 118 96 174 56 61 145 124 150 106 Core Hits 873 | . 12 3 17 50 58 110 2 29 26 . 12 63 49 101 29 30 82 82 52 66 Critical Kills 21 | . . . . . . 2 . . . . 1 1 3 4 1 5 1 1 2 . Critical Parts Destroyed 23 | . . . 1 . . 1 . . 1 . . 1 1 5 2 5 5 . . 1 Critical Strikes 61 | . . . 1 . 3 3 . . 1 . 1 2 4 9 3 10 6 7 9 2 Burn 11 | . . . . . 3 . . . . . . . . . . . . 5 3 . Meltdown 3 | . . . . . . . . . . . . 1 . . . . . 1 1 . Destroy 41 | . . . 1 . . 3 . . 1 . 1 1 4 9 3 10 6 . 1 1 Blast 4 | . . . . . . . . . . . . . . . . . . . 3 1 Corrupt 2 | . . . . . . . . . . . . . . . . . . 1 1 . Melee Attacks 17 | . . . . . . 2 . 1 4 1 . . 9 . . . . . . . Impact 8 | . . . . . . 2 . 1 4 1 . . . . . . . . . . Slashing 7 | . . . . . . . . . . . . . 7 . . . . . . . Piercing 2 | . . . . . . . . . . . . . 2 . . . . . . . Sneak Attacks . | . . . . . . . . . . . . . . . . . . . . . Combat Hostiles . | . . . . . . . . . . . . . . . . . . . . . Follow-up Attacks . | . . . . . . . . . . . . . . . . . . . . . Damage Inflicted 59409 | . 277 49 528 1384 2225 5409 83 1172 801 . 315 4279 2489 7862 2173 1709 7166 7280 5623 8585 Guns 29319 | . 254 49 480 1384 2199 4721 83 1172 801 . 315 1858 1410 2921 1428 1371 1738 1802 3750 1583 Cannons 13857 | . . . . . . . . . . . . 422 757 3022 . 268 3123 2079 1738 2448 Explosions 15418 | . . . . . . 627 . . . . . 1942 68 1681 745 70 2294 3370 135 4486 Melee 254 | . . . . . . . . . . . . . 254 . . . . . . . Ramming 561 | . 23 . 48 . 26 61 . . . . . 57 . 238 . . 11 29 . 68 Kinetic 23891 | . 254 49 407 1250 1711 4705 83 1172 801 . 315 1754 1410 2921 1428 1371 1738 401 856 1265 Thermal 19760 | . . . 73 . 488 16 . . . . . 422 825 3656 183 338 4533 3214 4002 2010 Explosive 8778 | . . . . . . . . . . . . 1942 . . . . . 2936 . 3900 Electromagnetic 6165 | . . . . 134 . 627 . . . . . 104 . 1047 562 . 884 700 765 1342 Impact . | . . . . . . . . . . . . . . . . . . . . . Slashing 254 | . . . . . . . . . . . . . 254 . . . . . . . Piercing . | . . . . . . . . . . . . . . . . . . . . . Highest Corruption 63 | . . . . 2 2 5 . . . . . 9 2 9 27 39 63 21 58 61 Average Corruption 11 | . . . . 2 2 4 . . . . . 3 1 4 23 26 13 11 28 17 Corruption Purged 37 | . . . . . . . . . . . . . . . . 31 . 6 . . Corruption Blocked . | . . . . . . . . . . . . . . . . . . . . . Effects 469 | . . . . . 23 43 . . . . . 19 5 46 25 40 41 48 125 54 Message Errors 105 | . . . . . 7 11 . . . . . 4 1 13 10 5 8 10 25 11 Matter Fused 93 | . . . . . 3 6 . . . . . 2 2 9 3 6 12 10 31 9 Heat Flow Errors 47 | . . . . . 3 7 . . . . . 3 . 8 2 4 1 5 11 3 Energy Discharges 55 | . . . . . 3 4 . . . . . 5 . 4 2 7 6 5 16 3 Parts Rejected 9 | . . . . . 2 . . . . . . . . . 1 . 1 1 1 3 Data Loss (minor) 51 | . . . . . 3 8 . . . . . 3 1 2 1 5 6 7 10 5 Data Loss (major) 14 | . . . . . 1 1 . . . . . 1 1 1 3 . . 1 4 1 Misfires 28 | . . . . . . 2 . . . . . 1 . 6 1 1 2 5 6 4 Alerts 13 | . . . . . . 3 . . . . . . . 3 1 1 . . 3 2 Misdirections 9 | . . . . . . . . . . . . . . . . 1 2 . 2 4 Weapon Failures 45 | . . . . . 1 1 . . . . . . . . 1 10 3 4 16 9 Overload Shots 3 | . . . . . . . . . . . . . . . . . . 3 . . Overflow Damage 1636 | . . . . . . 21 . . . . . 113 2 112 . . 182 501 57 648 Projectiles 397 | . . . . . . . . . . . . . 2 61 . . 74 153 30 77 Explosions 1171 | . . . . . . 21 . . . . . 103 . 10 . . 108 348 27 554 Melee 68 | . . . . . . . . . . . . 10 . 41 . . . . . 17 Knockbacks 21 | . 1 . . . . 1 . . . . . . . 4 . . . 1 3 11 Impact 7 | . 1 . . . . 1 . . . . . . . 4 . . . 1 . . Kinetic 14 | . . . . . . . . . . . . . . . . . . . 3 11 Secondary . | . . . . . . . . . . . . . . . . . . . . . Self-Inflicted Damage 1088 | . . . . . 27 . . . . . . 328 . 141 15 . 166 81 128 202 Shots 23 | . . . . . 1 . . . . . . 6 . 5 1 . 4 2 2 2 Rammed 33 | . 4 . 7 . 4 1 . . . . . 3 . 10 . . 2 1 . 1 Targets Rammed 45 | . 4 . 7 . 4 4 . . . . . 4 . 13 . . 2 2 . 5 Kicked 4 | . . . . . . . . . . . . . . . . . . . . 4 Crushed 8 | . . . . . . 3 . . . . . 1 . 3 . . . 1 . . Highest Temperature 847 | . 6 9 145 309 397 436 130 335 229 . 256 334 298 329 199 290 417 569 847 320 Average Temperature 115 | . 6 9 40 71 107 107 65 106 77 . 123 108 90 109 87 108 110 172 169 89 Received Heat Transfer 4516 | . 18 42 93 382 545 306 . 124 18 . 48 470 273 521 54 27 372 870 . 353 Effects 73 | . . . . 2 1 3 . . . . . 3 3 1 . 2 2 19 37 . Shutdowns 16 | . . . . . . . . . . . . . . . . . 1 7 8 . Energy Bleed 6 | . . . . . . . . . . . . 1 . . . . . 2 3 . Interference 29 | . . . . 2 . 3 . . . . . 2 3 . . 2 . 7 10 . Matter Decay 2 | . . . . . . . . . . . . . . . . . . 1 1 . Short Circuit 8 | . . . . . 1 . . . . . . . . 1 . . 1 1 4 . Damage (minor) 1 | . . . . . . . . . . . . . . . . . . . 1 . Damage (major) 8 | . . . . . . . . . . . . . . . . . . . 8 . Damage (core) 3 | . . . . . . . . . . . . . . . . . . 1 2 . Siege Activations 10 | . . . . . . . . . . . . . . 2 1 . 4 1 2 . Total Turns 324 | . . . . . . . . . . . . . . 59 7 . 169 47 42 . Longest Duration 62 | . . . . . . . . . . . . . . 40 7 . 62 47 23 . Robots Corrupted 17 | . . . . . . 2 . . . . . . . 1 2 . 4 . 3 5 Combat Hostiles 14 | . . . . . . 2 . . . . . . . 1 2 . 2 . 2 5 Parts Fried 49 | . . . . . . 7 . . . . . . . 2 2 . 10 5 12 11 Impact Corruptions 6 | . . . 1 . . . . . . . . 1 . 3 . . . . . 1 Robots Melted 5 | . . . . . . . . . . . . 1 . . . . . 3 1 . Combat Hostiles 4 | . . . . . . . . . . . . 1 . . . . . 2 1 . Parts Melted 37 | . . 1 . 1 1 . . . . . . 1 . 2 . . 1 18 11 1 Heat Transferred 13794 | . . . 222 . 1258 37 . . . . . 444 . 900 100 50 950 4846 3603 1384 Parts Sabotaged . | . . . . . . . . . . . . . . . . . . . . . Parts Stolen . | . . . . . . . . . . . . . . . . . . . . . Parts Stripped . | . . . . . . . . . . . . . . . . . . . . . Power Chain Reactions 22 | . . . . . . . . . . . . . 1 6 1 1 8 . 2 3 Missiles Intercepted . | . . . . . . . . . . . . . . . . . . . . . Alert | -11 -10 -10 -9 -8 -8 -7 -6 -6 -6 -6 -5 -5 -4 -4 -4 -4 -4 -3 -3 -2 ------- Run | Scr Mat Min Mat Mat Sto Fac Fac Low Low Zio Pro Fac Fac Ext Cet Arc Hub Res Tes Res Peak Influence 1709 | . 130 56 353 383 482 916 456 . . . . 564 482 1709 1179 687 1363 792 452 604 Initial 871 | . . . 21 85 126 219 448 . . . . . 275 207 871 397 170 579 398 182 Average 358 | . 70 9 177 227 312 300 451 . . . . 142 332 775 1041 562 481 474 271 160 Maximum Alert Level 5 | . . . 1 1 2 3 2 . . . . 2 2 5 4 2 4 3 2 2 Low Security (%) 32 | 100 100 100 60 48 8 38 . . . . . 74 7 . . . 3 14 27 69 Level 1 36 | . . . 39 51 70 41 . . . . . 9 64 20 . . 52 32 68 22 Level 2 16 | . . . . . 21 6 100 . . . . 16 27 20 . 99 28 19 4 7 Level 3 11 | . . . . . . 13 . . . . . . . 41 88 . . 33 . . Level 4 2 | . . . . . . . . . . . . . . 12 11 . 14 . . . Level 5 . | . . . . . . . . . . . . . . 5 . . . . . . High Security . | . . . . . . . . . . . . . . . . . . . . . Max Security . | . . . . . . . . . . . . . . . . . . . . . Squads Dispatched 85 | . 2 . 4 2 3 13 . . . . . 11 5 9 . . 6 13 10 7 Investigation 16 | . 1 . 1 1 2 2 . . . . . 3 1 2 . . . 1 1 1 Extermination 27 | . . . . . . 7 . . . . . 2 2 . . . 2 5 6 3 Reinforcement 23 | . 1 . 3 . 1 3 . . . . . 3 2 2 . . 3 2 . 3 Assault 9 | . . . . . . 1 . . . . . . . 5 . . 1 2 . . Garrison 10 | . . . . 1 . . . . . . . 3 . . . . . 3 3 . Intercept . | . . . . . . . . . . . . . . . . . . . . . Searches Triggered 1 | . . . . . . . . . . . . . 1 . . . . . . . Construction Impeded 4 | . . . . . . . . . . . . . . 2 . . . . . 2 Haulers Reinforced 4 | . . . . . . . . . . . . 1 1 . . . 1 1 . . Active Scanning Responses 3 | . . . . . . . . . . . . 3 . . . . . . . . Cargo Convoy Interrupts . | . . . . . . . . . . . . . . . . . . . . . Stealth | -11 -10 -10 -9 -8 -8 -7 -6 -6 -6 -6 -5 -5 -4 -4 -4 -4 -4 -3 -3 -2 --------- Run | Scr Mat Min Mat Mat Sto Fac Fac Low Low Zio Pro Fac Fac Ext Cet Arc Hub Res Tes Res Distress Signals 16 | . . . 2 1 . 2 . . . . . . 1 1 1 . 4 2 1 1 Communications Jammed 75 | . . . . . . . . . . . . . . . . . 75 . . . Distress Signals 68 | . . . . . . . . . . . . . . . . . 68 . . . Times Spotted 526 | . 10 2 23 28 30 51 1 8 7 . 3 43 27 72 15 30 51 47 34 44 Peak Tracking Total 16 | . 3 2 6 5 4 5 1 4 3 . 3 12 6 14 5 1 16 9 3 7 Tactical Retreats 18 | . . . 1 3 2 . . . . . . 5 2 1 . . . 4 . . Traps | -11 -10 -10 -9 -8 -8 -7 -6 -6 -6 -6 -5 -5 -4 -4 -4 -4 -4 -3 -3 -2 ------- Run | Scr Mat Min Mat Mat Sto Fac Fac Low Low Zio Pro Fac Fac Ext Cet Arc Hub Res Tes Res Traps Triggered 15 | . . . . . 2 6 . . . . . 2 . . . . 2 1 1 1 Indirectly . | . . . . . . . . . . . . . . . . . . . . . Trap Hack Attempts . | . . . . . . . . . . . . . . . . . . . . . Triggered . | . . . . . . . . . . . . . . . . . . . . . Disarmed . | . . . . . . . . . . . . . . . . . . . . . Reprogrammed . | . . . . . . . . . . . . . . . . . . . . . Reused . | . . . . . . . . . . . . . . . . . . . . . Traps Extracted . | . . . . . . . . . . . . . . . . . . . . . Installed . | . . . . . . . . . . . . . . . . . . . . . Triggered 2 | . . . . . . . . 1 . . 1 . . . . . . . . . Machines | -11 -10 -10 -9 -8 -8 -7 -6 -6 -6 -6 -5 -5 -4 -4 -4 -4 -4 -3 -3 -2 ---------- Run | Scr Mat Min Mat Mat Sto Fac Fac Low Low Zio Pro Fac Fac Ext Cet Arc Hub Res Tes Res Machines Disabled 66 | . . . . . 2 10 . 1 . . . 2 3 6 4 4 27 2 4 1 Max in Single Turn 25 | . . . . . 1 1 . 1 . . . 2 1 2 1 1 25 1 1 1 Garrison Access 4 | . . . . . . 2 . . . . . . . . . . 1 . . 1 Network Hub 2 | . . . . . . . . . . . . . . . . . 2 . . . Machines Sabotaged . | . . . . . . . . . . . . . . . . . . . . . Garrisons Compromised . | . . . . . . . . . . . . . . . . . . . . . Overloaded Fab Kills . | . . . . . . . . . . . . . . . . . . . . . Hacking | -11 -10 -10 -9 -8 -8 -7 -6 -6 -6 -6 -5 -5 -4 -4 -4 -4 -4 -3 -3 -2 --------- Run | Scr Mat Min Mat Mat Sto Fac Fac Low Low Zio Pro Fac Fac Ext Cet Arc Hub Res Tes Res Machines Accessed 61 | . 6 . 6 6 8 12 1 1 . . . 3 4 9 . . 1 2 1 1 Terminals 34 | . 5 . 3 4 6 6 . . . . . . 1 9 . . . . . . Fabricators 8 | . . . . . . 3 1 . . . . 1 1 . . . . 2 . . Repair Stations 4 | . . . 2 . . . . . . . . 1 1 . . . . . . . Recycling Units 4 | . 1 . 1 . 2 . . . . . . . . . . . . . . . Scanalyzers 2 | . . . . 1 . . . . . . . 1 . . . . . . . . Garrison Access 8 | . . . . 1 . 3 . . . . . . 1 . . . 1 . 1 1 Total Hacks 166 | . 22 . 18 22 22 22 3 1 . . . 7 13 18 . . 2 10 5 1 Successful 86 | . 10 . 13 15 14 12 1 1 . . . 2 6 6 . . 1 3 1 1 Failed 79 | . 11 . 5 7 8 10 2 . . . . 5 7 12 . . 1 7 4 . Catastrophic 7 | . . . . . . 2 . . . . . . 2 1 . . . . 2 . Database Lockouts 1 | . 1 . . . . . . . . . . . . . . . . . . . Manual 84 | . 20 . 10 10 12 15 . . . . . . 6 5 1 . . . 5 . Terminals 86 | . 20 . 11 10 17 8 . . . . . . 2 18 . . . . . . Fabricators 25 | . . . . . . 8 3 . . . . 2 2 . . . . 10 . . Repair Stations 11 | . . . 4 . . . . . . . . 2 5 . . . . . . . Recycling Units 10 | . 2 . 3 . 5 . . . . . . . . . . . . . . . Scanalyzers 14 | . . . . 11 . . . . . . . 3 . . . . . . . . Garrison Access 19 | . . . . 1 . 6 . . . . . . 4 . . . 2 . 5 1 Terminal Hacks 23 | . 3 . 3 2 7 . . 1 . . . . 1 6 . . . . . . Record 1 | . . . . . . . . 1 . . . . . . . . . . . . Robot Analysis 4 | . 1 . 1 1 1 . . . . . . . . . . . . . . . Open Door 8 | . . . . . 3 . . . . . . . . 5 . . . . . . Terminal Index 4 | . 1 . 1 1 . . . . . . . . 1 . . . . . . . Alert Level 1 | . . . . . 1 . . . . . . . . . . . . . . . Unreport Threat 1 | . . . . . . . . . . . . . . 1 . . . . . . Locate Traps 3 | . 1 . 1 . 1 . . . . . . . . . . . . . . . Zone Layout 1 | . . . . . 1 . . . . . . . . . . . . . . . Fabricator Hacks 9 | . . . . . . 3 1 . . . . 1 1 . . . . 3 . . Network Status 4 | . . . . . . 1 1 . . . . . 1 . . . . 1 . . Load Schematic 2 | . . . . . . . . . . . . 1 . . . . . 1 . . Build 3 | . . . . . . 2 . . . . . . . . . . . 1 . . Repair Station Hacks 7 | . . . 4 . . . . . . . . . 3 . . . . . . . Scan Component 4 | . . . 2 . . . . . . . . . 2 . . . . . . . Repair 3 | . . . 2 . . . . . . . . . 1 . . . . . . . Recycling Unit Hacks 4 | . 1 . 1 . 2 . . . . . . . . . . . . . . . Retrieve Components 4 | . 1 . 1 . 2 . . . . . . . . . . . . . . . Scanalyzer 10 | . . . . 9 . . . . . . . 1 . . . . . . . . Insert Component 5 | . . . . 4 . . . . . . . 1 . . . . . . . . Analyze 5 | . . . . 5 . . . . . . . . . . . . . . . . Garrison Access Hacks 4 | . . . . . . 2 . . . . . . . . . . 1 . . 1 Seal Access 4 | . . . . . . 2 . . . . . . . . . . 1 . . 1 Unauthorized Hacks 29 | . 6 . 5 4 5 7 . . . . . . 1 . . . . . 1 . Terminals 17 | . 5 . 4 3 3 2 . . . . . . . . . . . . . . Track 1 | . . . . . 1 . . . . . . . . . . . . . . . Botnet 13 | . 4 . 3 2 2 2 . . . . . . . . . . . . . . Operators 3 | . 1 . 1 1 . . . . . . . . . . . . . . . . Fabricators 1 | . . . . . . 1 . . . . . . . . . . . . . . Report 1 | . . . . . . 1 . . . . . . . . . . . . . . Repair Stations . | . . . . . . . . . . . . . . . . . . . . . Recycling Units 4 | . 1 . 1 . 2 . . . . . . . . . . . . . . . Tunnel 4 | . 1 . 1 . 2 . . . . . . . . . . . . . . . Scanalyzers . | . . . . . . . . . . . . . . . . . . . . . Garrison Access 7 | . . . . 1 . 4 . . . . . . 1 . . . . . 1 . Redirect 2 | . . . . . . 2 . . . . . . . . . . . . . . Reprogram 1 | . . . . . . 1 . . . . . . . . . . . . . . Watchers 4 | . . . . 1 . 1 . . . . . . 1 . . . . . 1 . Data Cores Recovered 7 | . . . . 1 1 1 . . . . . . 2 . . . 2 . . . Used 2 | . . . . 1 . 1 . . . . . . . . . . . . . . Hacking Detections 48 | . 5 . 6 5 6 9 1 . . . . 3 4 5 . . 1 2 1 . Full Trace Events 6 | . . . 1 1 . . . . . . . . 1 2 . . . 1 . . Feedback Events . | . . . . . . . . . . . . . . . . . . . . . Feedback Blocked . | . . . . . . . . . . . . . . . . . . . . . Robot Schematics Acquired 3 | . . . . . . . . . . 3 . . . . . . . . . . Robots Built 1 | . . . . . . 1 . . . . . . . . . . . . . . Authchips . | . . . . . . . . . . . . . . . . . . . . . Time 116 | . . . . . . 116 . . . . . . . . . . . . . . Total Robot Build Rating 3 | . . . . . . 3 . . . . . . . . . . . . . . Part Schematics Acquired 18 | . . . . 4 . . . . . 14 . . . . . . . . . . Parts Built 3 | . . . . . . 2 . . . . . . . . . . . 1 . . Authchips . | . . . . . . . . . . . . . . . . . . . . . Time 131 | . . . . . . 106 . . . . . . . . . . . 25 . . Total Part Build Rating 13 | . . . . . . 12 . . . . . . . . . . . 1 . . Parts Repaired 3 | . . . 2 . . . . . . . . . 1 . . . . . . . Time 77 | . . . 52 . . . . . . . . . 25 . . . . . . . Parts Recycled . | . . . . . . . . . . . . . . . . . . . . . Recycled Matter . | . . . . . . . . . . . . . . . . . . . . . Retrieved Matter . | . . . . . . . . . . . . . . . . . . . . . Retrieved Components 16 | . 3 . . . 13 . . . . . . . . . . . . . . . Parts Scanalyzed 4 | . . . . 4 . . . . . . . . . . . . . . . . Part Schematics Acquired 4 | . . . . 4 . . . . . . . . . . . . . . . . Parts Damaged . | . . . . . . . . . . . . . . . . . . . . . Bothacking | -11 -10 -10 -9 -8 -8 -7 -6 -6 -6 -6 -5 -5 -4 -4 -4 -4 -4 -3 -3 -2 ------------ Run | Scr Mat Min Mat Mat Sto Fac Fac Low Low Zio Pro Fac Fac Ext Cet Arc Hub Res Tes Res Used RIF Installer . | . . . . . . . . . . . . . . . . . . . . . Robots Hacked . | . . . . . . . . . . . . . . . . . . . . . Non-combat . | . . . . . . . . . . . . . . . . . . . . . Combat . | . . . . . . . . . . . . . . . . . . . . . Robot Hacks Applied . | . . . . . . . . . . . . . . . . . . . . . Relay Couplers Released 3 | . . . . . . . . . . . . . . . . . . . . 3 Machine Destruction 3 | . . . . . . . . . . . . . . . . . . . . 3 Fabnet Peak Effective % . | . . . . . . . . . . . . . . . . . . . . . Robots Rewired 26 | . . . . . . . . . . . . . . 26 . . . . . . Allies Hacked . | . . . . . . . . . . . . . . . . . . . . . Hacks Repelled . | . . . . . . . . . . . . . . . . . . . . . Allies | -11 -10 -10 -9 -8 -8 -7 -6 -6 -6 -6 -5 -5 -4 -4 -4 -4 -4 -3 -3 -2 -------- Run | Scr Mat Min Mat Mat Sto Fac Fac Low Low Zio Pro Fac Fac Ext Cet Arc Hub Res Tes Res Total Allies 52 | . . 2 . . . 2 . . . . . 3 . 40 5 . . . . . Largest Group 15 | . . 2 2 1 . 2 1 1 1 1 . 3 . 15 7 1 1 . . . Highest-Rated Group 705 | . . 41 41 31 . 60 22 22 22 22 . 93 . 705 379 96 96 . . . Highest-Rated Ally 159 | . . 31 31 31 . 37 22 22 22 22 . 31 . 159 139 96 96 . . . Total Orders 35 | . . . . . . 4 . 3 7 . . . 2 . 3 2 4 4 3 3 STAY 8 | . . . . . . 2 . 1 3 . . . . . 1 1 . . . . FOLLOW 4 | . . . . . . 1 . . . . . . . . 2 1 . . . . AID 7 | . . . . . . 1 . 2 4 . . . . . . . . . . . EXPLORE 2 | . . . . . . . . . . . . . . . . . . . . 2 RETURN 14 | . . . . . . . . . . . . . 2 . . . 4 4 3 1 Ally Attacks 309 | . . 4 24 9 . 2 . . . . . 21 . 177 61 4 7 . . . Total Damage 8736 | . . 63 436 127 . 156 . . . . . 411 . 5331 1788 142 282 . . . Kills 67 | . . . 9 1 . 1 . . . . . 6 . 41 7 . 2 . . . Allies Corrupted . | . . . . . . . . . . . . . . . . . . . . . Allies Melted 2 | . . . . . . . . . . . . . . 1 1 . . . . . Intel | -11 -10 -10 -9 -8 -8 -7 -6 -6 -6 -6 -5 -5 -4 -4 -4 -4 -4 -3 -3 -2 ------- Run | Scr Mat Min Mat Mat Sto Fac Fac Low Low Zio Pro Fac Fac Ext Cet Arc Hub Res Tes Res Robot Analysis Total 4 | . 1 . 1 1 1 . . . . . . . . . . . . . . . Derelict Logs Recovered 5 | . . . . . . . . 1 2 1 1 . . . . . . . . . Drone Launches 19 | . . . . . . . . . . . . . 2 . . . 4 4 3 6 Drone Recoveries 16 | . . . . . . . . . . . . . 2 . . . 4 4 3 3 Exploration | -11 -10 -10 -9 -8 -8 -7 -6 -6 -6 -6 -5 -5 -4 -4 -4 -4 -4 -3 -3 -2 ------------- Run | Scr Mat Min Mat Mat Sto Fac Fac Low Low Zio Pro Fac Fac Ext Cet Arc Hub Res Tes Res Turns Passed 26225 | 93 838 105 830 906 1398 3307 323 1657 1686 1776 1139 1505 1414 2011 502 713 867 1657 2134 1364 Spaces Moved 11403 | 53 462 59 279 299 457 1435 126 638 707 742 466 913 1009 889 182 222 295 684 999 487 Core 137 | 25 . . . . . . . . . . . 76 . . . . . . . 36 Treads 8981 | 28 462 59 279 299 457 1435 126 638 707 742 466 605 . 861 182 222 295 286 827 5 Legs 1672 | . . . . . . . . . . . . . 708 28 . . . 398 172 366 Wheels 77 | . . . . . . . . . . . . . . . . . . . . 77 Hover 6 | . . . . . . . . . . . . . 3 . . . . . . 3 Flight 530 | . . . . . . . . . . . . 232 298 . . . . . . . Fastest Speed 40 | 50 160 160 160 240 240 160 242 242 162 162 162 40 50 120 160 160 160 120 150 50 Average Speed 182 | 154 160 160 237 240 240 195 242 242 194 238 240 136 104 158 160 160 180 151 160 199 Slowest Speed 1550 | 200 160 160 240 240 240 242 242 242 242 242 242 1550 120 240 160 160 270 270 250 795 Overloaded Moves . | . . . . . . . . . . . . . . . . . . . . . Propulsion Burnouts . | . . . . . . . . . . . . . . . . . . . . . Robots Hopped 11 | . . . . . . . . . . . . 9 2 . . . . . . . Cave-ins Triggered 1 | . . . . . . . . . . . . 1 . . . . . . . . Exploration Rate (%) 48 | 5 62 22 32 35 58 46 6 80 74 79 73 26 25 87 52 76 43 18 95 18 Regions Visited 20 Branch Regions 11 Pre-discovered Areas 5 | . 1 . 1 . 2 . . . 1 . . . . . . . . . . . Known Exits Taken 10 | . . . . . . 1 1 1 1 1 1 1 . . . . 1 1 1 . Unknown Exits Taken 10 | 1 1 1 1 1 1 . . . . . . . 1 1 1 1 . . . . Scrap Searched 11 | . . . . . . . . 2 3 4 2 . . . . . . . . . Spaces Dug 39 | . . . . . . 2 . . 4 . . 9 8 . . . 2 8 3 3 Terrain Destroyed 790 | . . . . . 13 2 . . 4 . . 66 37 88 19 21 252 128 42 118 Melee 8 | . . . . . . 2 . . 4 . . . 2 . . . . . . . Projectile 238 | . . . . . . . . . . . . 11 19 54 1 17 57 22 31 26 AOE 543 | . . . . . 13 . . . . . . 55 16 33 18 4 195 106 11 92 Terrain Rammed . | . . . . . . . . . . . . . . . . . . . . . Walls Destroyed . | . . . . . . . . . . . . . . . . . . . . . Machines Disabled . | . . . . . . . . . . . . . . . . . . . . . Actions | -11 -10 -10 -9 -8 -8 -7 -6 -6 -6 -6 -5 -5 -4 -4 -4 -4 -4 -3 -3 -2 --------- Run | Scr Mat Min Mat Mat Sto Fac Fac Low Low Zio Pro Fac Fac Ext Cet Arc Hub Res Tes Res Total 15015 | 61 512 63 400 389 640 1842 143 724 989 747 479 1086 1221 1245 313 487 461 1133 1364 716 Wait 1549 | . 3 . 58 17 26 228 12 52 248 . 4 74 67 29 63 200 51 230 134 53 Move 11363 | 52 461 58 278 298 456 1434 125 637 706 741 465 894 1004 889 181 221 295 683 998 487 Hop 10 | . . . . . . . . . . . . 8 2 . . . . . . . Pick Up 217 | 3 10 1 17 8 17 15 1 1 3 1 1 7 16 19 9 2 7 39 28 12 Fast Attach 216 | 6 3 . 4 5 19 9 . . 1 . 1 5 31 18 10 9 10 25 34 26 Attach 153 | . . . 3 4 9 5 1 . 1 1 . 16 6 14 3 1 13 31 20 25 Detach 41 | . 1 . . . 1 4 . . 1 . . 1 5 5 1 . 2 5 12 3 Swap 124 | . . . 1 3 12 16 . 2 3 2 . 10 13 9 3 3 10 7 19 11 Drop 208 | . 1 . 11 6 29 24 1 2 1 1 1 5 17 25 7 8 12 7 41 9 Fire 948 | . 29 4 21 48 67 101 3 29 21 . 7 61 51 100 36 43 60 104 78 85 Melee 17 | . . . . . . 2 . 1 4 1 . . 9 . . . . . . . Ram 1 | . . . . . . . . . . . . . . . . . . . . 1 Kick 4 | . . . . . . . . . . . . . . . . . . . . 4 Crush 38 | . 4 . 7 . 4 4 . . . . . 4 . 12 . . 1 2 . . Escape Stasis 1 | . . . . . . . . . . . . 1 . . . . . . . . Rewire 125 | . . . . . . . . . . . . . . 125 . . . . . . Trap . | . . . . . . . . . . . . . . . . . . . . . Miscellaneous . | . . . . . . . . . . . . . . . . . . . . . Route ------- -11/Scrapyard -10/Materials (discovered 3 exits: *Mat x2 / [*Min]) -10/Mines -9/Materials -8/Materials -8/Storage -7/Factory (discovered 3 exits: *Fac x3) -6/Factory -6/Lower Caves (discovered 2 exits: *Low / *Zio) -6/Lower Caves (discovered 2 exits: *Fac / *Zio) -6/Zion -5/Proximity Caves -5/Factory (discovered 3 exits: *Fac x2 / Upp) -4/Factory (discovered 4 exits: *Res / [*Upp x2] / *Ext) -4/Extension (discovered 2 exits: *Res / *Cet) -4/Cetus -4/Archives (discovered 2 exits: *Res / *Hub) -4/Hub_04(d) (discovered 4 exits: *Res x4) -3/Research (discovered 5 exits: *Res x3 / *Tes x2) -3/Testing -2/Research History --------- Turn | Location | Event 3 | -11/Scrapyard | Discovered new exit (range 15) 94 | -11/Scrapyard | Entered Materials 312 | -10/Materials | Build established: Mutant 337 | -10/Materials | Discovered new exit (range 7) 522 | -10/Materials | Discovered new exit (range 4) 736 | -10/Materials | Discovered new exit (range 9) 852 | -10/Materials | Central database locked down 932 | -10/Materials | Entered Mines 1010 | -10/Mines | Discovered new exit (range 5) 1037 | -10/Mines | Entered Materials 1037 | -9/Materials | Accompanied by 2 allies 1037 | -9/Materials | Evolved 2 slots: Propulsion x1, Weapon x1 1042 | -9/Materials | Led the pair of lost Derelicts to an unsafe place 1081 | -9/Materials | Repaired Core Shielding 1372 | -9/Materials | Build established: Tank 1449 | -9/Materials | Repaired Lgt. Treads 1751 | -9/Materials | Discovered new exit (range 11) 1867 | -9/Materials | Entered another Materials area 1867 | -8/Materials | Accompanied by 1 ally 1867 | -8/Materials | Evolved 2 slots: Propulsion x1, Weapon x1 2053 | -8/Materials | Garrison activated, responded to threat 2144 | -8/Materials | Build established: Scavenger-Tank 2665 | -8/Materials | Discovered new exit (range 14) 2773 | -8/Materials | Entered Storage 3058 | -8/Storage | Lost 4 parts (3n1w) 3909 | -8/Storage | Build established: Scavenger-Gunner 3916 | -8/Storage | Discovered new exit (range 16) 4171 | -8/Storage | Entered Factory 4171 | -7/Factory | Evolved 2 slots: Propulsion x1, Utility x1 4272 | -7/Factory | Discovered new exit (range 7) 4538 | -7/Factory | Fabricated Adv. Shield Generator (x2) 6292 | -7/Factory | Discovered new exit (range 5) 6310 | -7/Factory | Identified exit to Factory 6659 | -7/Factory | Fabricated M-28 Smith (x1) 6971 | -7/Factory | First assault squad dispatched 7158 | -7/Factory | Found Prototype Device 7444 | -7/Factory | Discovered exit to Factory (range 12) 7478 | -7/Factory | Entered another Factory area 7478 | -6/Factory | Accompanied by 1 ally 7478 | -6/Factory | Evolved 2 slots: Utility x2 7479 | -6/Factory | Identified Active Sensor Suite 7784 | -6/Factory | Discovered new exit (range 5) 7785 | -6/Factory | Build established: Scavenger-Skirmisher 7794 | -6/Factory | Identified exit to Lower Caves 7801 | -6/Factory | Entered Lower Caves 7801 | -6/Lower Caves | Accompanied by 1 ally 8213 | -6/Lower Caves | Learned 8 Factory zone layouts 8450 | -6/Lower Caves | A Derelict revealed a hidden shortcut to a safe place 8456 | -6/Lower Caves | Identified exit to Zion 8928 | -6/Lower Caves | Attacked by a delusional Derelict stockpiling parts 9374 | -6/Lower Caves | Attracted the attention of an 0b10 checkpoint 9397 | -6/Lower Caves | Discovered new exit (range 11) 9450 | -6/Lower Caves | Identified exit to Lower Caves 9458 | -6/Lower Caves | Entered another Lower Caves area 9458 | -6/Lower Caves | Accompanied by 1 ally 9558 | -6/Lower Caves | Discovered new exit (range 9) 9577 | -6/Lower Caves | Identified exit to Factory 10212 | -6/Lower Caves | Attracted the attention of an 0b10 checkpoint 10228 | -6/Lower Caves | Learned location of Extension (-4) 10320 | -6/Lower Caves | Learned 4 Factory zone layouts 10531 | -6/Lower Caves | Discovered exit to Zion (range 7) 11144 | -6/Lower Caves | Entered Zion 11144 | -6/Zion | Accompanied by 1 ally 11198 | -6/Zion | Given the Hacking Drone Bay 11199 | -6/Zion | Found Prototype Device 11222 | -6/Zion | Discovered new exit (range 16) 11418 | -6/Zion | Learned 4 Factory zone layouts 11931 | -6/Zion | Loaded intel: 4 derelict terminal locations 12917 | -6/Zion | Identified exit to Proximity Caves 12920 | -6/Zion | Entered Proximity Caves 12920 | -5/Proximity Caves | Accompanied by 1 ally 14059 | -5/Proximity Caves | Entered Factory 14059 | -5/Factory | Evolved 2 slots: Propulsion x1, Utility x1 14060 | -5/Factory | Identified exit to Factory 14060 | -5/Factory | Identified exit to Upper Caves 14239 | -5/Factory | Identified Hacking Drone Bay 14964 | -5/Factory | Crushed by falling debris 15103 | -5/Factory | Allied Derelicts emerged from ambush trap array 15251 | -5/Factory | Garrison activated, responded to threat 15347 | -5/Factory | Destroyed 11 combat bots 15354 | -5/Factory | Lost 24 parts (2p12n2u8w) 15399 | -5/Factory | Core integrity fell below 50% 15405 | -5/Factory | Released all parts (4) 15464 | -5/Factory | Spotted B-75 Beast 15550 | -5/Factory | Build established: Mutant 15550 | -5/Factory | Discovered exit to Factory (range 11) 15564 | -5/Factory | Entered another Factory area 15564 | -4/Factory | Evolved 2 slots: Power x1, Utility x1 15715 | -4/Factory | Discovered new exit (range 5) 15814 | -4/Factory | Search patrols dispatched 16453 | -4/Factory | Build established: Scavenger-Tank 16767 | -4/Factory | Repaired Arm. Leg 16787 | -4/Factory | Discovered new exit (range 5) 16967 | -4/Factory | Discovered new exit (range 9) 16971 | -4/Factory | Discovered new exit (range 12) 16978 | -4/Factory | Entered Extension 17032 | -4/Extension | Rescued a captive Derelict 17160 | -4/Extension | Rescued a captive Derelict 17161 | -4/Extension | Rescued a captive Derelict 17428 | -4/Extension | Disrupted transfer network 17484 | -4/Extension | Build established: Scavenger-Gunner 17506 | -4/Extension | Rescued a captive Derelict 17507 | -4/Extension | Rescued a captive Derelict 18170 | -4/Extension | Spotted B-86 Titan 18222 | -4/Extension | Spotted B-86 Titan 18228 | -4/Extension | First assault squad dispatched 18268 | -4/Extension | Destroyed B-86 Titan 18279 | -4/Extension | Lost 5 parts (2n1u2w) 18369 | -4/Extension | Rescued a captive Derelict 18370 | -4/Extension | Rescued a captive Derelict 18518 | -4/Extension | Rescued A7 18519 | -4/Extension | Rescued a captive Derelict 18520 | -4/Extension | Rescued a captive Derelict 18557 | -4/Extension | Rescued a captive Derelict 18561 | -4/Extension | Rescued a captive Derelict 18576 | -4/Extension | Rescued a captive Derelict 18583 | -4/Extension | Rescued a captive Derelict 18873 | -4/Extension | Rescued a captive Derelict 18978 | -4/Extension | Discovered new exit (range 10) 18980 | -4/Extension | Discovered new exit (range 6) 18989 | -4/Extension | Entered Cetus 18989 | -4/Cetus | Accompanied by 7 allies (A7) 18994 | -4/Cetus | Acquired a Cetus Manufacturing Module code from A7 19018 | -4/Cetus | Spotted Cetus Guard 19018 | -4/Cetus | Spotted Cetus Guard 19025 | -4/Cetus | Destroyed Cetus Guard 19025 | -4/Cetus | Spotted Cetus Guard 19025 | -4/Cetus | Spotted Cetus Guard 19031 | -4/Cetus | Allies destroyed Cetus Guard 19037 | -4/Cetus | Destroyed Cetus Guard 19037 | -4/Cetus | Destroyed Cetus Guard 19075 | -4/Cetus | System corruption reached 10% 19169 | -4/Cetus | Extracted ID and sensor layout for unrecognized location from A7's data core 19241 | -4/Cetus | Started Cetus Manufacturing Module 19266 | -4/Cetus | Manufactured an Enhanced Grunt 19291 | -4/Cetus | Manufactured an Enhanced Grunt 19316 | -4/Cetus | Manufactured an Enhanced Grunt 19341 | -4/Cetus | Manufactured an Enhanced Grunt 19366 | -4/Cetus | Manufactured an Enhanced Grunt 19372 | -4/Cetus | Found Prototype Device 19372 | -4/Cetus | Identified Exp. Thermal Shield 19400 | -4/Cetus | Build established: Scavenger-Tank 19466 | -4/Cetus | Discovered new exit (range 16) 19491 | -4/Cetus | Entered Archives 19491 | -4/Archives | Accompanied by 1 ally 19564 | -4/Archives | System corruption reached 30% 19680 | -4/Archives | Discovered new exit (range 12) 19895 | -4/Archives | Build established: Scavenger-Mutant 20077 | -4/Archives | Discovered new exit (range 15) 20204 | -4/Archives | Entered Hub_04(d) 20204 | -4/Hub_04(d) | Accompanied by 1 ally 20299 | -4/Hub_04(d) | Identified exit to Research 20306 | -4/Hub_04(d) | Spotted B-86 Titan 20318 | -4/Hub_04(d) | Destroyed B-86 Titan 20534 | -4/Hub_04(d) | Core integrity fell below 50% 20572 | -4/Hub_04(d) | Found Prototype Device 20572 | -4/Hub_04(d) | Identified Exp. ECM Suite 20697 | -4/Hub_04(d) | Build established: Scavenger-Tank 20801 | -4/Hub_04(d) | Destroyed 8 combat bots 20941 | -4/Hub_04(d) | Network Hub disabled 20943 | -4/Hub_04(d) | Spotted Lightning 20947 | -4/Hub_04(d) | Spotted Lightning 20948 | -4/Hub_04(d) | Spotted Lightning 20954 | -4/Hub_04(d) | First assault squad dispatched 20974 | -4/Hub_04(d) | Spotted Lightning 20979 | -4/Hub_04(d) | Spotted Lightning 20980 | -4/Hub_04(d) | Spotted Lightning 20992 | -4/Hub_04(d) | Spotted Lightning 20997 | -4/Hub_04(d) | Spotted Lightning 21008 | -4/Hub_04(d) | Spotted Lightning 21055 | -4/Hub_04(d) | Core integrity fell below 20% 21064 | -4/Hub_04(d) | Network Hub disabled 21071 | -4/Hub_04(d) | Entered Research 21071 | -3/Research | Evolved 2 slots: Propulsion x2 21101 | -3/Research | Lost 20 parts (2p6n4u8w) 21261 | -3/Research | Identified exit to Testing 21269 | -3/Research | Identified exit to Research 21287 | -3/Research | Build established: Mutant 21586 | -3/Research | Fabricated Huge Storage Unit (x1) 21681 | -3/Research | Lost 7 parts (2p1n3u1w) 21720 | -3/Research | Found Fusion Bomb Launcher 21929 | -3/Research | Garrison activated, responded to threat 21932 | -3/Research | System corruption reached 10% 21978 | -3/Research | Destroyed 12 combat bots 21985 | -3/Research | Lost 11 parts (1p3n1u6w) 22106 | -3/Research | First assault squad dispatched 22184 | -3/Research | Found Prototype Device 22187 | -3/Research | Found Prototype Device 22189 | -3/Research | Destroyed 7 combat bots 22198 | -3/Research | Lost 3 parts (3p) 22218 | -3/Research | Found Prototype Processor 22218 | -3/Research | Identified Exp. Terrain Scan Processor 22369 | -3/Research | Identified Exp. Shield Generator (x2) 22395 | -3/Research | Spotted B-86 Titan 22728 | -3/Research | Entered Testing 23041 | -3/Testing | Spotted Striker 23690 | -3/Testing | Build established: Gunner 23850 | -3/Testing | Discovered exit to Research (range 22) 23961 | -3/Testing | Found Prototype Processor 23961 | -3/Testing | Identified Spectral Analyzer 23997 | -3/Testing | Garrison activated, responded to threat 23999 | -3/Testing | System corruption reached 30% 24098 | -3/Testing | Found Prototype Launcher 24098 | -3/Testing | Identified Z-bomb Delivery System 24163 | -3/Testing | Found Prototype Hackware 24220 | -3/Testing | Found Prototype Processor 24220 | -3/Testing | Identified Exp. Target Analyzer 24358 | -3/Testing | Build established: Scavenger-Mutant 24423 | -3/Testing | Spotted PD-HZOIA1JZJO 24443 | -3/Testing | Destroyed PD-HZOIA1JZJO 24472 | -3/Testing | Lost 7 parts (1p4n1u1w) 24497 | -3/Testing | Found Corrupted Prototype Launcher 24497 | -3/Testing | Identified Ragnarok Missile Launcher 24539 | -3/Testing | Core integrity fell below 50% 24744 | -3/Testing | Found Prototype Processor 24744 | -3/Testing | Identified Exp. Targeting Computer 24861 | -3/Testing | Identified Exp. Hacking Suite 24862 | -3/Testing | Entered Research 24862 | -2/Research | Evolved 2 slots: Utility x2 25036 | -2/Research | Lost 6 parts (3n2u1w) 25299 | -2/Research | Build established: Scavenger-Skirmisher 25481 | -2/Research | Found Prototype Device 25481 | -2/Research | Identified Exp. Force Field 25739 | -2/Research | System corruption reached 10% 25747 | -2/Research | Lost 8 parts (1p3n4w) 25777 | -2/Research | System corruption reached 30% 25925 | -2/Research | Build established: Scavenger-Mutant 26167 | -2/Research | Destroyed 9 combat bots 26202 | -2/Research | Core integrity fell below 50% 26208 | -2/Research | Released all parts (9) 26215 | -2/Research | Core integrity fell below 20% 26226 | -2/Research | Destroyed by H-88 Terminator with Heavy Machine Gun Last Messages --------------- 26212_ U-05 Engineer lays Concrete. 26213_ Penetrated by Slug. 26213_ Triggered Alarm Trap. 26213_ An alarm sounds. 26213_ ALERT: Alarm triggered, dispatching investigation squad. 26213_ Slug penetrates Wall. 26214_ R-10 Processor collects Corrupted Med. Storage Unit. 26214_ Slug penetrates Wall. 26214_ U-05 Engineer lays Concrete. 26215_ The unstable cave ceiling collapses. 26215_ Corrupted Adv. Remote Datajack crushed. 26215_ Slug penetrates Wall. 26216_ Penetrated by Slug. 26216_ Slug penetrates Wall. 26217_ Slug penetrates H-88 Terminator. 26218_ Slug penetrates Wall. 26219_ R GKYIVG, H1:MXGWL# 26224_ Penetrated by Slug. 26226_ Slammed into A-15 Conveyor. 26226_ Penetrated by Slug. Map ----- +----------------------------------------------------+ | ####?# # #???????????????????? | | ?????# # #???????????????????? | | ?????########## # #???????????????????? | | ???????? * #???????????????????? | | ???????? %%# /"##########???????????????? | | ???????? [!! = #???????????????? | | ???????? # #???????????????? | | ?????? =% #???????????????? | | ?????? % [! #???????????????? | | ?????? # !! #???????????????? | | ?????? ## [ #???????????????? | | ?????######+#### #???????????????? | | ???????????? h #???????????????? | | ???????????? #???????????????? | | ???????????? h #???????????????? | | ???????????? p #???????????????? | | ?????????????" """ """ #####???????????????? | | ????????????"" """ """ #???????????????????? | | ???????????""" """ """ #???????????????????? | | ?????????? #???????????????????? | | ?????????? #???????????????????? | | ?????????? #???????????????????? | | ?????????? +???????????????????? | | ???????????############# A #???????????????????? | | ???????????????????????# #???????????????????? | | ???????????????????????##@####???????????????????? | | ????????????????????????# #??????????????????????? | | ????????????????????????# #??????????????????????? | | ????????????????????????# #??????????????????????? | | ????????????????????????# #??????????????????????? | | ????????????????????????# #??????????????????????? | | ????????????????????????# #??????????????????????? | | ????????????????????????# #??????????????????????? | | ????????????????????????# #??????????????????????? | | ????????????????????????? ???????????????????????? | | ????????????????????????? ???????????????????????? | | ????????????????????????? ???????????????????????? | | ????????????????????????? ???????????????????????? | | ????????????????????????? ???????????????????????? | | ????????????????????????? ???????????????????????? | | ????????????????????????? ???????????????????????? | | ?????????????????????????????????????????????????? | | ?????????????????????????????????????????????????? | | ?????????????????????????????????????????????????? | | ?????????????????????????????????????????????????? | | ?????????????????????????????????????????????????? | | ?????????????????????????????????????????????????? | | ?????????????????????????????????????????????????? | | ?????????????????????????????????????????????????? | | ?????????????????????????????????????????????????? | +----------------------------------------------------+ Best States ------------- Heat Dissipation 106 Coolant Potential 100 Energy Generation 45 Energy Capacity 880 Matter Stores 300 Matter Capacity 600 Sight Range 24 Robot Scan Range 20 Terrain Scan Range 14 Terrain Scan Density 1010 ECM Strength 3 Jamming Range 14 Cloak Strength 3 Power Amplification 30 Additional Mass Support 16 EM Shielding 3 Armor Coverage 600 Resistance: EM 25 Core Shielding 20 Power Shielding 66 Weapon Shielding 90 Phase Shifting 10 Evasion (%) 70 Targeting Accuracy 12 Target Analysis 8 Armor Integrity Analysis 40 Recoil Reduction 8 Offensive Hacking 24 Item Schematics ----------------- Huge Storage Unit | -8/Materials | Scanalyzed Hacking Suite | -8/Materials | Scanalyzed Autogun | -8/Materials | Scanalyzed Structural Scanner | -8/Materials | Scanalyzed Arc Thrower | -6/Zion | Archive Remote Force Field | -6/Zion | Archive Phasing Sabre | -6/Zion | Archive Adv. Drone Bay | -6/Zion | Archive Magnetic Acceleration Cannon | -6/Zion | Archive Adv. Heat Sink | -6/Zion | Archive Imp. System Guard | -6/Zion | Archive Matter Neutralizer | -6/Zion | Archive Adv. Melee Analysis Suite | -6/Zion | Archive Imp. Kinecellerator | -6/Zion | Archive Antigrav System | -6/Zion | Archive Fusion Compressor | -6/Zion | Archive Spk. Medium Treads | -6/Zion | Archive Imp. Recalibrator | -6/Zion | Archive Robot Schematics ------------------ A-15 Conveyor | -6/Zion | Archive R-10 Processor | -6/Zion | Archive X-77 Beamer | -6/Zion | Archive Fabricated ------------ Adv. Shield Generator | x2 | -7/Factory | Preloaded M-28 Smith | x1 | -7/Factory | Preloaded Huge Storage Unit | x1 | -3/Research Alien Tech Used ----------------- None Achievements -------------- None Challenges ------------ None Game ------ Seed IntegratedSignalSource Manual? 0 Play Time 02:35:15 Cumulative 230.3 hours Start 2022.03.29 @ 01:54:51 End 2022.03.30 @ 06:39:00 Sessions 5 Manual Loads 0 Difficulty Rogue Special Mode None Game No. 330 Rogue 308 Adventurer 4 Explorer 18 Win Type - Total 10 Types 8/0/0/2/0/0/0/0/0 Lore% 69 Gallery% 87 Achievement% 71 Wizard Run 0 Options --------- ASCII 0 Keyboard 1 Movement Numpad Keybinds 0 Fullscreen 1 Font 18/SmallcapsGlow Map View 76x50 Tactical HUD 1 Map Filters NONE Filters NONE Steam 1 RUN: 7cbceddb-6703-49ab-98b8-07bc5944a5c7